fUSD/lending_fUSD_20250503
["ID","MTS","AMOUNT","RATE_DAILY","PERIOD"]
[359694343,1746258646934,-456.57942005,0.00019792,2]
[359694344,1746258646944,-450.0,0.00019792,2]
[359694345,1746258646953,-450.0,0.00019792,2]
[359694346,1746258646962,-471.74365121,0.00019792,2]
[359694347,1746258646971,-450.0,0.00019792,2]
[359694348,1746258646981,-454.21,0.00019792,2]
[359694349,1746258646991,-450.0,0.00019792,2]
[359694350,1746258647013,-450.0,0.00019792,2]
[359694351,1746258647023,-640.14,0.00019792,2]
[359694352,1746258647034,-450.0,0.00019792,2]
[359694353,1746258647043,-450.0,0.00019792,2]
[359694354,1746258647052,-450.0,0.00019792,2]
[359694355,1746258647061,-450.0,0.00019792,2]
[359694356,1746258647071,-450.0,0.00019792,2]
[359694357,1746258647081,-573.59694529,0.00019792,2]
[359694358,1746258647090,-503.1,0.00019792,2]
[359694359,1746258647099,-457.66,0.00019792,2]
[359694360,1746258647273,-450.0,0.00019792,2]
[359694361,1746258647304,-450.0,0.00019792,2]
[359694362,1746258647313,-450.0,0.00019792,2]
[359694363,1746258647323,-450.0,0.00019792,2]
[359694364,1746258647332,-450.0,0.00019792,2]
[359694365,1746258647342,-450.0,0.00019792,2]
[359694366,1746258647352,-481.37865192,0.00019792,2]
[359694367,1746258647361,-450.0,0.00019792,2]
[359694368,1746258647371,-450.0,0.00019792,2]
[359694369,1746258647380,-451.09,0.00019792,2]
[359694370,1746258647389,-450.0,0.00019792,2]
[359694371,1746258647398,-450.0,0.00019792,2]
[359694372,1746258647407,-450.0,0.00019792,2]
[359694373,1746258647417,-291.31094517,0.00019792,2]
[359694374,1746258647426,-582.82,0.00019792,2]
[359694375,1746258647436,-450.0,0.00019792,2]
[359694376,1746258647445,-450.0,0.00019792,2]
[359694377,1746258647454,-480.08984411,0.00019792,2]
[359694378,1746258647464,-450.0,0.00019792,2]
[359694379,1746258647473,-450.0,0.00019792,2]
[359694380,1746258647482,-450.0,0.00019792,2]
[359694381,1746258647493,-450.0,0.00019792,2]
[359694382,1746258647503,-627.78,0.00019792,2]
[359694383,1746258647512,-457.06505476,0.00019792,2]
[359694384,1746258647521,-450.0,0.00019792,2]
[359694385,1746258647531,-450.0,0.00019792,2]
[359694386,1746258647540,-579.45,0.00019792,2]
[359694387,1746258647549,-450.0,0.00019792,2]
[359694388,1746258647559,-450.0,0.00019792,2]
[359694389,1746258647569,-450.0,0.00019792,2]
[359694390,1746258647578,-450.0,0.00019792,2]
[359694391,1746258647588,-450.0,0.00019792,2]
[359694392,1746258647597,-573.89,0.00019792,2]
[359694393,1746258647607,-414.0,0.00019792,2]
[359694394,1746258647616,-450.0,0.00019792,2]
[359694395,1746258647626,-450.0,0.00019792,2]
[359694396,1746258647635,-1443.3,0.00019792,2]
[359694397,1746258647645,-450.0,0.00019792,2]
[359694398,1746258647655,-450.0,0.00019792,2]
[359694399,1746258647665,-367.45052593,0.00019792,2]
[359694400,1746258647674,-504.07,0.00019792,2]
[359694401,1746258647685,-450.0,0.00019792,2]
[359694402,1746258647694,-662.74,0.00019792,2]
[359694403,1746258647704,-450.0,0.00019792,2]
[359694404,1746258647713,-458.28250635,0.00019792,2]
[359694405,1746258647723,-450.0,0.00019792,2]
[359694406,1746258647732,-450.0,0.00019792,2]
[359694407,1746258647742,-450.0,0.00019792,2]
[359694408,1746258647751,-489.93000742,0.00019792,2]
[359694409,1746258647761,-450.0,0.00019792,2]
[359694410,1746258647770,-450.0,0.00019792,2]
[359694411,1746258647780,-450.0,0.00019792,2]
[359694412,1746258647789,-512.58,0.00019792,2]
[359694413,1746258647798,-450.0,0.00019792,2]
[359694414,1746258647806,-450.0,0.00019792,2]
[359694415,1746258647816,-461.61160083,0.00019792,2]
[359694416,1746258647825,-451.7021702,0.00019792,2]
[359694417,1746258647834,-450.0,0.00019792,2]
[359694418,1746258647843,-450.0,0.00019792,2]
[359694419,1746258647853,-501.17,0.00019792,2]
[359694420,1746258647862,-450.0,0.00019792,2]
[359694421,1746258647871,-457.68661829,0.00019792,2]
[359694422,1746258647881,-471.92,0.00019792,2]
[359694423,1746258647890,-450.0,0.00019792,2]
[359694424,1746258647900,-450.0,0.00019792,2]
[359694425,1746258647909,-450.0,0.00019792,2]
[359694426,1746258647920,-450.0,0.00019792,2]
[359694427,1746258647930,-450.0,0.00019792,2]
[359694428,1746258647939,-512.68,0.00019792,2]
[359694429,1746258647948,-450.0,0.00019792,2]
[359694430,1746258647958,-450.0,0.00019792,2]
[359694431,1746258647967,-912.77,0.00019792,2]
[359694432,1746258647978,-450.0,0.00019792,2]
[359694433,1746258647988,-450.0,0.00019792,2]
[359694434,1746258647997,-474.77099196,0.00019792,2]
[359694435,1746258648007,-1765.72,0.00019792,2]
[359694436,1746258648016,-450.0,0.00019792,2]
[359694437,1746258648027,-450.0,0.00019792,2]
[359694438,1746258648037,-704.07,0.00019792,2]
[359694439,1746258648050,-450.0,0.00019792,2]
[359694440,1746258648059,-472.41553206,0.00019792,2]
[359694441,1746258648069,-450.0,0.00019792,2]
[359694442,1746258648078,-450.0,0.00019792,2]
[359694443,1746258648088,-594.59,0.00019792,2]
[359694444,1746258648098,-455.81877184,0.00019792,2]
[359694445,1746258648107,-450.0,0.00019792,2]
[359694446,1746258648117,-450.0,0.00019792,2]
[359694447,1746258648126,-450.0,0.00019792,2]
[359694448,1746258648136,-450.0,0.00019792,2]
[359694449,1746258648145,-833.59,0.00019792,2]
[359694450,1746258648155,-523.22269424,0.00019792,2]
[359694451,1746258648164,-510.1275576,0.00019792,2]
[359694452,1746258648174,-522.48565583,0.00019792,2]
[359694453,1746258648183,-453.07780868,0.00019792,2]
[359694454,1746258648193,-450.0,0.00019792,2]
[359694455,1746258648203,-450.0,0.00019792,2]
[359694456,1746258648212,-450.0,0.00019792,2]
[359694457,1746258648222,-850.06,0.00019792,2]
[359694458,1746258648231,-450.0,0.00019792,2]
[359694459,1746258648241,-450.0,0.00019792,2]
[359694460,1746258648250,-633.69,0.00019792,2]
[359694461,1746258648259,-700.54,0.00019792,2]
[359694462,1746258648269,-448.06051244,0.00019792,2]
[359694463,1746258648279,-450.0,0.00019792,2]
[359694464,1746258648288,-1146.16,0.00019792,2]
[359694465,1746258648298,-450.0,0.00019792,2]
[359694466,1746258648308,-450.0,0.00019792,2]
[359694467,1746258648317,-748.38,0.00019792,2]
[359694468,1746258648326,-450.0,0.00019792,2]
[359694469,1746258648336,-450.0,0.00019792,2]
[359694470,1746258648345,-453.14751422,0.00019792,2]
[359694471,1746258648354,-458.33877601,0.00019792,2]
[359694472,1746258648363,-450.0,0.00019792,2]
[359694473,1746258648373,-450.0,0.00019792,2]
[359694474,1746258648383,-546.57131559,0.00019792,2]
[359694475,1746258648392,-459.83883118,0.00019792,2]
[359694476,1746258648401,-450.0,0.00019792,2]
[359694477,1746258648410,-727.65,0.00019792,2]
[359694478,1746258648420,-450.0,0.00019792,2]
[359694479,1746258648429,-510.6,0.00019792,2]
[359694480,1746258648439,-450.0,0.00019792,2]
[359694481,1746258648448,-513.68333459,0.00019792,2]
[359694482,1746258648457,-466.62201435,0.00019792,2]
[359694483,1746258648466,-450.0,0.00019792,2]
[359694484,1746258648475,-450.0,0.00019792,2]
[359694485,1746258648484,-520.38338388,0.00019792,2]
[359694486,1746258648494,-450.0,0.00019792,2]
[359694487,1746258648503,-450.0,0.00019792,2]
[359694488,1746258648512,-450.0,0.00019792,2]
[359694489,1746258648521,-484.93610212,0.00019792,2]
[359694490,1746258648530,-450.0,0.00019792,2]
[359694491,1746258648540,-1072.77,0.00019792,2]
[359694492,1746258648550,-386.12069982,0.00019792,2]
[359694493,1746258648559,-450.0,0.00019792,2]
[359694494,1746258648569,-450.0,0.00019792,2]
[359694495,1746258648578,-450.0,0.00019792,2]
[359694496,1746258648588,-450.0,0.00019792,2]
[359694497,1746258648598,-450.0,0.00019792,2]
[359694498,1746258648608,-300.0,0.00019792,2]
[359694499,1746258648618,-450.0,0.00019792,2]
[359694500,1746258648628,-450.0,0.00019792,2]
[359694501,1746258648638,-582.87,0.00019792,2]
[359694502,1746258648649,-450.0,0.00019792,2]
[359694503,1746258648660,-929.09,0.00019792,2]
[359694504,1746258648670,-450.0,0.00019792,2]
[359694505,1746258648681,-450.0,0.00019792,2]
[359694506,1746258648692,-450.0,0.00019792,2]
[359694507,1746258648703,-450.0,0.00019792,2]
[359694508,1746258648713,-450.0,0.00019792,2]
[359694509,1746258648723,-450.0,0.00019792,2]
[359694510,1746258648735,-450.0,0.00019792,2]
[359694511,1746258648748,-215.37404137,0.00019792,2]
[359694512,1746258648757,-901.61,0.00019792,2]
[359694513,1746258648767,-459.35967021,0.00019792,2]
[359694514,1746258648777,-450.0,0.00019792,2]
[359694515,1746258648787,-450.0,0.00019792,2]
[359694516,1746258648797,-450.0,0.00019792,2]
[359694517,1746258648806,-454.76014598,0.00019792,2]
[359694518,1746258648818,-450.0,0.00019792,2]
[359694519,1746258648827,-450.0,0.00019792,2]
[359694520,1746258648837,-547.2350554,0.00019792,2]
[359694521,1746258648846,-450.0,0.00019792,2]
[359694522,1746258648856,-450.0,0.00019792,2]
[359694523,1746258648865,-450.0,0.00019792,2]
[359694524,1746258648875,-458.10755454,0.00019792,2]
[359694525,1746258648885,-1366.24,0.00019792,2]
[359694526,1746258648895,-442.27695719,0.00019792,2]
[359694527,1746258648904,-349.85521944,0.00019792,2]
[359694528,1746258648914,-450.0,0.00019792,2]
[359694529,1746258648924,-453.59640617,0.00019792,2]
[359694530,1746258648933,-450.0,0.00019792,2]
[359694531,1746258648942,-450.0,0.00019792,2]
[359694532,1746258648952,-504.17,0.00019792,2]
[359694533,1746258648961,-509.91269127,0.00019792,2]
[359694534,1746258648971,-455.95974964,0.00019792,2]
[359694535,1746258648980,-500.0,0.00019792,2]
[359694536,1746258648991,-453.06786334,0.00019792,2]
[359694537,1746258649001,-450.0,0.00019792,2]
[359694538,1746258649010,-450.0,0.00019792,2]
[359694539,1746258649020,-450.0,0.00019792,2]
[359694540,1746258649029,-524.82703189,0.00019792,2]
[359694541,1746258649039,-585.14,0.00019792,2]
[359694542,1746258649048,-450.0,0.00019792,2]
[359694543,1746258649058,-450.0,0.00019792,2]
[359694544,1746258649068,-458.54206571,0.00019792,2]
[359694545,1746258649078,-450.0,0.00019792,2]
[359694546,1746258649088,-450.0,0.00019792,2]
[359694547,1746258649098,-450.0,0.00019792,2]
[359694548,1746258649108,-506.01156426,0.00019792,2]
[359694549,1746258649117,-462.35624384,0.00019792,2]
[359694550,1746258649127,-1626.53,0.00019792,2]
[359694551,1746258649136,-5049.8552051,0.00019792,2]
[359694552,1746258649145,-2456.52,0.00019792,2]
[359694553,1746258649154,-450.0,0.00019792,2]
[359694554,1746258649163,-450.0,0.00019792,2]
[359694555,1746258649173,-450.0,0.00019792,2]
[359694556,1746258649182,-450.0,0.00019792,2]
[359694557,1746258649192,-450.0,0.00019792,2]
[359694558,1746258649202,-568.15,0.00019792,2]
[359694559,1746258649211,-450.0,0.00019792,2]
[359694560,1746258649220,-529.28,0.00019792,2]
[359694561,1746258649230,-450.0,0.00019792,2]
[359694562,1746258649240,-450.0,0.00019792,2]
[359694563,1746258649249,-457.77396252,0.00019792,2]
[359694564,1746258649259,-456.12967459,0.00019792,2]
[359694565,1746258649268,-450.0,0.00019792,2]
[359694566,1746258649278,-450.0,0.00019792,2]
[359694567,1746258649287,-450.0,0.00019792,2]
[359694568,1746258649297,-450.0,0.00019792,2]
[359694569,1746258649306,-515.43665258,0.00019792,2]
[359694570,1746258649315,-450.0,0.00019792,2]
[359694571,1746258649325,-450.0,0.00019792,2]
[359694572,1746258649334,-450.0,0.00019792,2]
[359694573,1746258649344,-450.0,0.00019792,2]
[359694574,1746258649354,-463.12601813,0.00019792,2]
[359694575,1746258649363,-1150.86,0.00019792,2]
[359694576,1746258649372,-459.64962527,0.00019792,2]
[359694577,1746258649382,-450.0,0.00019792,2]
[359694578,1746258649391,-560.94173237,0.00019792,2]
[359694579,1746258649401,-450.0,0.00019792,2]
[359694580,1746258649410,-659.1,0.00019792,2]
[359694581,1746258649419,-458.12286135,0.00019792,2]
[359694582,1746258649429,-450.0,0.00019792,2]
[359694583,1746258649439,-530.36590608,0.00019792,2]
[359694584,1746258649449,-450.0,0.00019792,2]
[359694585,1746258649459,-450.0,0.00019792,2]
[359694586,1746258649470,-450.0,0.00019792,2]
[359694587,1746258649480,-450.0,0.00019792,2]
[359694588,1746258649490,-450.0,0.00019792,2]
[359694589,1746258649499,-450.0,0.00019792,2]
[359694590,1746258649508,-450.0,0.00019792,2]
[359694591,1746258649517,-479.1,0.00019792,2]
[359694592,1746258649526,-495.46265253,0.00019792,2]
[359694593,1746258649536,-518.20718707,0.00019792,2]
[359694594,1746258649545,-1230.04,0.00019792,2]
[359694595,1746258649555,-450.0,0.00019792,2]
[359694596,1746258649566,-450.0,0.00019792,2]
[359694597,1746258649575,-453.05336354,0.00019792,2]
[359694598,1746258649584,-450.0,0.00019792,2]
[359694599,1746258649594,-450.0,0.00019792,2]
[359694600,1746258649603,-450.0,0.00019792,2]
[359694601,1746258649612,-462.70311618,0.00019792,2]
[359694602,1746258649622,-538.62156973,0.00019792,2]
[359694603,1746258649631,-450.0,0.00019792,2]
[359694604,1746258649708,-450.0,0.00019792,2]
[359694605,1746258649717,-450.0,0.00019792,2]
[359694606,1746258649726,-450.0,0.00019792,2]
[359694607,1746258649735,-450.0,0.00019792,2]
[359694608,1746258649744,-450.0,0.00019792,2]
[359694609,1746258649753,-450.0,0.00019792,2]
[359694610,1746258649762,-450.0,0.00019792,2]
[359694611,1746258649771,-898.29,0.00019792,2]
[359694612,1746258649780,-573.85,0.00019792,2]
[359694613,1746258649788,-450.0,0.00019792,2]
[359694614,1746258649798,-500.0,0.00019792,2]
[359694615,1746258649807,-790.71,0.00019792,2]
[359694616,1746258649815,-450.0,0.00019792,2]
[359694617,1746258649825,-467.32348345,0.00019792,2]
[359694618,1746258649834,-2516.69,0.00019792,2]
[359694619,1746258649843,-450.0,0.00019792,2]
[359694620,1746258649853,-465.08627527,0.00019792,2]
[359694621,1746258649862,-450.0,0.00019792,2]
[359694622,1746258649872,-460.88245494,0.00019792,2]
[359694623,1746258649881,-459.23268258,0.00019792,2]
[359694624,1746258649891,-1094.05,0.00019792,2]
[359694625,1746258649900,-450.0,0.00019792,2]
[359694626,1746258649909,-450.0,0.00019792,2]
[359694627,1746258649919,-450.0,0.00019792,2]
[359694628,1746258649928,-450.0,0.00019792,2]
[359694629,1746258649937,-450.0,0.00019792,2]
[359694630,1746258649947,-460.21002212,0.00019792,2]
[359694631,1746258649956,-450.0,0.00019792,2]
[359694632,1746258649965,-479.04562528,0.00019792,2]
[359694633,1746258649974,-450.0,0.00019792,2]
[359694634,1746258649984,-2253.66,0.00019792,2]
[359694635,1746258649994,-450.0,0.00019792,2]
[359694636,1746258650003,-450.0,0.00019792,2]
[359694637,1746258650013,-450.0,0.00019792,2]
[359694638,1746258650022,-534.48082415,0.00019792,2]
[359694639,1746258650032,-450.0,0.00019792,2]
[359694640,1746258650041,-461.39678564,0.00019792,2]
[359694641,1746258650050,-482.52,0.00019792,2]
[359694642,1746258650060,-450.0,0.00019792,2]
[359694643,1746258650069,-746.33,0.00019792,2]
[359694644,1746258650079,-454.61683104,0.00019792,2]
[359694645,1746258650088,-450.0,0.00019792,2]
[359694646,1746258650098,-450.0,0.00019792,2]
[359694647,1746258650107,-450.0,0.00019792,2]
[359694648,1746258650116,-450.0,0.00019792,2]
[359694649,1746258650125,-462.88543606,0.00019792,2]
[359694650,1746258650134,-460.25528628,0.00019792,2]
[359694651,1746258650143,-450.0,0.00019792,2]
[359694652,1746258650152,-532.59351748,0.00019792,2]
[359694653,1746258650162,-523.13265755,0.00019792,2]
[359694654,1746258650170,-460.72882184,0.00019792,2]
[359694655,1746258650179,-450.0,0.00019792,2]
[359694656,1746258650189,-459.02224388,0.00019792,2]
[359694657,1746258650198,-516.2711438,0.00019792,2]
[359694658,1746258650207,-782.44,0.00019792,2]
[359694659,1746258650218,-463.49925979,0.00019792,2]
[359694660,1746258650227,-456.11985567,0.00019792,2]
[359694661,1746258650236,-556.06306146,0.00019792,2]
[359694662,1746258650245,-595.69,0.00019792,2]
[359694663,1746258650255,-450.0,0.00019792,2]
[359694664,1746258650265,-450.0,0.00019792,2]
[359694665,1746258650276,-458.90871299,0.00019792,2]
[359694666,1746258650285,-512.40616649,0.00019793,2]
[359694667,1746258650298,-157.78413144,0.00019796,2]
[359694668,1746258650307,-269.1165694,0.00019799,2]
[359694669,1746258650317,-1073.0,0.000198,2]
[359694670,1746258650327,-1000.0,0.000198,2]
[359694671,1746258650335,-1001.0,0.000198,2]
[359694672,1746258650345,-1000.0,0.000198,2]
[359694673,1746258650355,-166.33896145,0.00019806,2]
[359694674,1746258650367,-3148.23653401,0.00019807,2]
[359694675,1746258650378,-3880.69833364,0.00019807,2]
[359694676,1746258650389,-3148.23653401,0.0001983,2]
[359694677,1746258650398,-3880.69833364,0.0001983,2]
[359694678,1746258650407,-163.81347882,0.0001983,2]
[359694679,1746258650418,-500.0,0.00019836,2]
[359694680,1746258650427,-166.33896145,0.00019837,2]
[359694681,1746258650437,-2000.0,0.0001984,2]
[359694682,1746258650447,-200.0,0.0001984,2]
[359694683,1746258650458,-12500.0,0.00019847,2]
[359694684,1746258650468,-157.78413144,0.00019848,2]
[359694685,1746258650478,-151.0,0.00019849,2]
[359694686,1746258650488,-151.0,0.00019851,2]
[359694687,1746258650497,-151.0,0.00019852,2]
[359694688,1746258650508,-151.0,0.00019854,2]
[359694689,1746258650518,-3148.23653401,0.00019854,2]
[359694690,1746258650527,-3880.69833364,0.00019854,2]
[359694691,1746258650536,-151.0,0.00019855,2]
[359694692,1746258650545,-12500.0,0.00019856,2]
[359694693,1746258650554,-500.0,0.00019864,2]
[359694694,1746258650563,-12500.0,0.00019865,2]
[359694695,1746258650573,-166.33896145,0.00019869,2]
[359694696,1746258650582,-12500.0,0.00019874,2]
[359694697,1746258650591,-3148.23653401,0.00019877,2]
[359694698,1746258650601,-3880.69833364,0.00019877,2]
[359694699,1746258650610,-12500.0,0.00019882,2]
[359694700,1746258650619,-12500.0,0.00019891,2]
[359694701,1746258650628,-500.0,0.00019899,2]
[359694702,1746258650637,-2096.32,0.00019899,2]
[359694703,1746258650647,-500.0,0.00019899,2]
[359694704,1746258650657,-633.34341307,0.00019899,2]
[359694705,1746258650668,-500.0,0.00019899,2]
[359694706,1746258650677,-500.0,0.00019899,2]
[359694707,1746258650687,-1817.64504189,0.000199,2]
[359694708,1746258650696,-12500.0,0.000199,2]
[359694709,1746258650705,-5152.27893101,0.000199,2]
[359694710,1746258650714,-2780.94450003,0.000199,2]
[359694711,1746258650723,-3148.23653401,0.000199,2]
[359694712,1746258650733,-3880.69833364,0.000199,2]
[359694713,1746258650745,-163.81347882,0.000199,2]
[359694714,1746258650754,-200.79647078,0.000199,2]
[359694715,1746258650763,-1000.0,0.000199,2]
[359694716,1746258650773,-157.78413144,0.000199,2]
[359694717,1746258650782,-8260.25619844,0.000199,2]
[359694718,1746258650791,-217.93612194,0.000199,3]
[359694719,1746258650800,-779.38283202,0.000199,2]
[359694720,1746258650810,-166.33896145,0.000199,2]
[359694721,1746258650819,-164.33507702,0.000199,2]
[359694722,1746258650829,-323.067,0.00019913,2]
[359694723,1746258650837,-4326.142,0.00019915,2]
[359694724,1746258650847,-8260.25619842,0.00019933,2]
[359694725,1746258650856,-8260.25619842,0.00019966,2]
[359694726,1746258650865,-217.93612193,0.00019966,3]
[359694727,1746258650875,-24428.0,0.00019973,2]
[359694728,1746258650884,-500.0,0.00019973,2]
[359694729,1746258650894,-500.0,0.00019973,2]
[359694730,1746258650903,-506.33875235,0.00019973,2]
[359694731,1746258650913,-544.89074326,0.00019973,2]
[359694732,1746258650922,-959.0,0.00019973,2]
[359694733,1746258650932,-501.15741321,0.00019973,2]
[359694734,1746258650942,-539.24803438,0.00019973,2]
[359694735,1746258650951,-500.8951883,0.00019973,2]
[359694736,1746258650961,-500.0,0.00019973,2]
[359694737,1746258650971,-500.0,0.00019973,2]
[359694738,1746258650980,-303.17184781,0.00019973,2]
[359694739,1746258650989,-502.06385384,0.00019973,2]
[359694740,1746258650999,-502.58925245,0.00019973,2]
[359694741,1746258651008,-500.0,0.00019973,2]
[359694742,1746258651017,-500.0,0.00019973,2]
[359694743,1746258651027,-517.26161729,0.00019973,2]
[359694744,1746258651036,-152.63342926,0.00019973,2]
[359694745,1746258651046,-160.20238278,0.00019973,2]
[359694746,1746258651055,-505.26039964,0.00019973,2]
[359694747,1746258651065,-500.0,0.00019973,2]
[359694748,1746258651074,-1424.87966567,0.00019976,2]
[359694749,1746258651084,-500.0,0.00019985,2]
[359694750,1746258651093,-500.0,0.00019985,2]
[359694751,1746258651103,-500.0,0.00019985,2]
[359694752,1746258651113,-500.0,0.00019985,2]
[359694753,1746258651123,-500.0,0.00019985,2]
[359694754,1746258651133,-500.0,0.00019985,2]
[359694755,1746258651143,-500.0,0.00019985,2]
[359694756,1746258651153,-500.0,0.00019985,2]
[359694757,1746258651163,-500.0,0.00019985,2]
[359694758,1746258651172,-500.0,0.00019985,2]
[359694759,1746258651181,-500.0,0.00019985,2]
[359694760,1746258651191,-2096.32,0.00019985,2]
[359694761,1746258651200,-2096.32,0.00019985,2]
[359694762,1746258651209,-500.0,0.00019985,2]
[359694763,1746258651218,-500.0,0.00019985,2]
[359694764,1746258651227,-500.0,0.00019985,2]
[359694765,1746258651237,-500.0,0.00019985,2]
[359694766,1746258651246,-536.11351951,0.00019985,2]
[359694767,1746258651255,-2129.0,0.00019986,2]
[359694768,1746258651264,-11183.1191718,0.00019986,2]
[359694769,1746258651273,-4377.5104563,0.00019986,2]
[359694770,1746258651283,-144822.2078666,0.00019986,2]
[359694771,1746258651292,-166.80661958,0.00019986,2]
[359694772,1746258651301,-354612.9393988,0.00019986,2]
[359694773,1746258651310,-37360.6472897,0.00019986,2]
[359694774,1746258651320,-500.0,0.00019989,2]
[359694775,1746258651329,-2096.32,0.00019989,2]
[359694776,1746258651338,-500.0,0.00019989,2]
[359694777,1746258651347,-500.0,0.00019989,2]
[359694778,1746258651356,-1424.87966567,0.0001999,2]
[359694779,1746258651366,-1424.87966567,0.0001999,2]
[359694780,1746258651375,-500.0,0.00019999,2]
[359694781,1746258651384,-500.0,0.00019999,2]
[359694782,1746258651393,-679.71892541,0.00019999,2]
[359694783,1746258651402,-337.95812922,0.00019999,2]
[359694784,1746258651412,-500.0,0.00019999,2]
[359694785,1746258651421,-342.92539755,0.00019999,2]
[359694786,1746258651430,-500.0,0.00019999,2]
[359694787,1746258651439,-500.0,0.00019999,2]
[359694788,1746258651449,-300.0,0.00019999,2]
[359694789,1746258651458,-323.27492623,0.00019999,2]
[359694790,1746258651467,-300.0,0.00019999,2]
[359694791,1746258651476,-500.0,0.00019999,2]
[359694792,1746258651485,-500.0,0.00019999,2]
[359694793,1746258651494,-500.0,0.00019999,2]
[359694794,1746258651504,-500.0,0.00019999,2]
[359694795,1746258651513,-500.0,0.00019999,2]
[359694796,1746258651523,-500.0,0.00019999,2]
[359694797,1746258651533,-500.0,0.00019999,2]
[359694798,1746258651542,-409.56184418,0.00019999,2]
[359694799,1746258651552,-500.0,0.00019999,2]
[359694800,1746258651561,-500.0,0.00019999,2]
[359694801,1746258651570,-500.0,0.00019999,2]
[359694802,1746258651578,-500.0,0.00019999,2]
[359694803,1746258651587,-500.0,0.00019999,2]
[359694804,1746258651598,-500.0,0.00019999,2]
[359694805,1746258651609,-500.0,0.00019999,2]
[359694806,1746258651618,-500.0,0.00019999,2]
[359694807,1746258651627,-500.0,0.00019999,2]
[359694808,1746258651637,-500.0,0.00019999,2]
[359694809,1746258651646,-500.0,0.00019999,2]
[359694810,1746258651655,-500.0,0.00019999,2]
[359694811,1746258651665,-500.0,0.00019999,2]
[359694812,1746258651676,-500.0,0.00019999,2]
[359694813,1746258651686,-500.0,0.00019999,2]
[359694814,1746258651695,-500.0,0.00019999,2]
[359694815,1746258651704,-500.0,0.00019999,2]
[359694816,1746258651713,-500.0,0.00019999,2]
[359694817,1746258651723,-500.0,0.00019999,2]
[359694818,1746258651734,-192.3518044,0.00019999,2]
[359694819,1746258651744,-500.0,0.00019999,2]
[359694820,1746258651754,-500.0,0.00019999,2]
[359694821,1746258651765,-308.22111321,0.00019999,2]
[359694822,1746258651779,-500.0,0.00019999,2]
[359694823,1746258651788,-500.0,0.00019999,2]
[359694824,1746258651800,-500.0,0.00019999,2]
[359694825,1746258651811,-500.0,0.00019999,2]
[359694826,1746258651821,-500.0,0.00019999,2]
[359694827,1746258651831,-500.0,0.00019999,2]
[359694828,1746258651840,-500.0,0.00019999,2]
[359694829,1746258651849,-500.0,0.00019999,2]
[359694830,1746258651858,-500.0,0.00019999,2]
[359694831,1746258651867,-500.0,0.00019999,2]
[359694832,1746258651876,-500.0,0.00019999,2]
[359694833,1746258651885,-500.0,0.00019999,2]
[359694834,1746258651895,-500.0,0.00019999,2]
[359694835,1746258651905,-500.0,0.00019999,2]
[359694836,1746258651915,-500.0,0.00019999,2]
[359694837,1746258651924,-500.0,0.00019999,2]
[359694838,1746258651933,-500.0,0.00019999,2]
[359694839,1746258651943,-587.97322185,0.00019999,2]
[359694840,1746258651952,-2096.32,0.00019999,2]
[359694841,1746258651963,-2096.32,0.00019999,2]
[359694842,1746258651972,-2096.32,0.00019999,2]